[Event "EIRCC 2019"]
[Site "Tallinn"]
[Date "2019.12.06"]
[Round "11.15"]
[White "Rogule, Laura"]
[Black "Stupak, Kirill"]
[Result "0-1"]
[ECO "A36"]
[WhiteElo "2292"]
[BlackElo "2552"]
[Annotator "ChessBase"]
[PlyCount "52"]
[EventDate "2019.12.05"]
[EventType "swiss"]
[EventCountry "EST"]
[SourceTitle "playchess.com"]
[Source "ChessBase"]
[SourceQuality "1"]
[TimeControl "900+10"]

1. c4 {[%emt 0:00:00]} g6 {[%emt 0:00:05]} 2. Nc3 {[%emt 0:00:35]} Bg7 {[%emt 0:00:01]} 3. g3 {[%emt 0:00:02]} c5 {[%emt 0:00:31]} 4. Bg2 {[%emt 0:00:03]} Nc6 {[%emt 0:00:02]} 5. e4 {[%emt 0:00:08]} e6 {[%emt 0:00:15]} 6. Nge2 {[%emt 0:00:06]} Nge7 7. d3 {[%emt 0:00:44]} O-O {[%emt 0:00:32]} 8. Be3 {[%emt 0:02:50]} Nd4 {[%emt 0:00:32]} 9. h4 {[%emt 0:00:08]} d5 {[%emt 0:02:58]} 10. exd5 {[%emt 0:01:06]} exd5 {[%emt 0:00:12]} 11. Bxd4 {[%emt 0:03:11]} cxd4 {[%emt 0:01:10]} 12. Nxd5 {[%emt 0:00:02]} Nxd5 {[%emt 0:00:17]} 13. Bxd5 {[%emt 0:00:10]} Re8 {[%emt 0:00:46]} 14. Qd2 {[%emt 0:03:50]} Bg4 {[%emt 0:03:46]} 15. f3 {[%emt 0:00:07]} Be6 {[%emt 0:00:21]} 16. Bxb7 {[%emt 0:00:24]} Rb8 {[%emt 0:00:30]} 17. Bc6 {[%emt 0:00:27]} Re7 {[%emt 0:00:01]} 18. O-O-O {[%emt 0:02:01]} Qd6 {[%emt 0:01:19]} 19. Ba4 {[%emt 0:00:10]} Reb7 {[%emt 0:00:02]} 20. b3 {[%emt 0:00:26]} Rb4 {[%emt 0:00:04]} 21. c5 {[%emt 0:01:26]} Qxc5+ {[%emt 0:00:27]} 22. Qc2 {[%emt 0:00:02]} Qa5 {[%emt 0:00:25]} 23. Bc6 {[%emt 0:00:32]} Rc8 {[%emt 0:00:18]} 24. Kb2 {[%emt 0:00:11]} Bd5 {[%emt 0:00:12]} 25. Qd2 {[%emt 0:00:05]} Rxc6 {[%emt 0:00:10]} 26. Rc1 {[%emt 0:00:05]} Rxb3+ {[%emt 0:00:20]} 0-1

[Event "EIRCC 2019"]
[Site "Tallinn"]
[Date "2019.12.06"]
[Round "11.16"]
[White "Dubrovin, Robert"]
[Black "Lintchevski, Daniil"]
[Result "0-1"]
[ECO "D21"]
[WhiteElo "2235"]
[BlackElo "2515"]
[Annotator "ChessBase"]
[PlyCount "96"]
[EventDate "2019.12.05"]
[EventType "swiss"]
[EventCountry "EST"]
[SourceTitle "playchess.com"]
[Source "ChessBase"]
[SourceQuality "1"]
[TimeControl "900+10"]

1. d4 {[%emt 0:00:00]} d5 {[%emt 0:00:21]} 2. c4 {[%emt 0:00:00]} dxc4 {[%emt 0:00:06]} 3. Nf3 {[%emt 0:00:00]} a6 {[%emt 0:00:10]} 4. e3 {[%emt 0:00:00]} Bg4 {[%emt 0:00:03]} 5. Bxc4 {[%emt 0:00:05]} e6 {[%emt 0:00:02]} 6. Nc3 {[%emt 0:00:28]} Nf6 {[%emt 0:00:11]} 7. h3 {[%emt 0:00:18]} Bh5 {[%emt 0:00:04]} 8. O-O {[%emt 0:00:39]} Nc6 {[%emt 0:00:08]} 9. Be2 {[%emt 0:00:06]} Bd6 {[%emt 0:00:02]} 10. b3 {[%emt 0:00:01]} O-O {[%emt 0:00:19]} 11. Bb2 {[%emt 0:00:00]} Re8 {[%emt 0:00:09]} 12. Nd2 {[%emt 0:00:16]} Bg6 {[%emt 0:00:12]} 13. Nc4 {[%emt 0:00:14]} Bf8 {[%emt 0:00:49]} 14. Bf3 {[%emt 0:01:24]} Nd5 {[%emt 0:00:03]} 15. a3 {[%emt 0:01:48]} Nce7 {[%emt 0:03:08]} 16. Ne5 {[%emt 0:00:39]} c6 {[%emt 0:00:15]} 17. g3 {[%emt 0:00:10]} Nxc3 {[%emt 0:00:49]} 18. Bxc3 {[%emt 0:00:01]} Nd5 {[%emt 0:00:03]} 19. Bb2 {[%emt 0:00:12]} Nf6 {[%emt 0:00:08]} 20. h4 {[%emt 0:00:21]} Be4 {[%emt 0:00:13]} 21. Be2 {[%emt 0:01:04]} h6 {[%emt 0:00:25]} 22. Rc1 {[%emt 0:00:58]} Nd7 {[%emt 0:00:17]} 23. Nxd7 {[%emt 0:00:30]} Qxd7 {[%emt 0:00:01]} 24. Bd3 {[%emt 0:00:05]} Bxd3 {[%emt 0:00:32]} 25. Qxd3 {[%emt 0:00:01]} e5 {[%emt 0:00:04]} 26. Rfd1 {[%emt 0:00:32]} e4 {[%emt 0:00:07]} 27. Qc4 {[%emt 0:01:13]} Rad8 {[%emt 0:00:05]} 28. d5 {[%emt 0:01:21]} cxd5 {[%emt 0:00:01]} 29. Qd4 {[%emt 0:00:01]} Qg4 {[%emt 0:00:52]} 30. Rc7 {[%emt 0:01:30]} Bd6 {[%emt 0:00:17]} 31. Rc2 {[%emt 0:00:51]} Be5 {[%emt 0:01:01]} 32. Qd2 {[%emt 0:00:01]} d4 {[%emt 0:02:02]} 33. Rc5 {[%emt 0:03:15]} Bf6 {[%emt 0:02:09]} 34. Bxd4 {[%emt 0:01:49]} Bxd4 {[%emt 0:00:01]} 35. exd4 {[%emt 0:00:04]} e3 {[%emt 0:00:01]} 36. Qd3 {[%emt 0:00:36]} e2 {[%emt 0:00:15]} 37. Re1 {[%emt 0:00:00]} Rxd4 {[%emt 0:00:01]} 38. Qc3 {[%emt 0:00:06]} Rd1 {[%emt 0:00:06]} 39. Kh2 {[%emt 0:00:20]} Rxe1 {[%emt 0:00:11]} 40. Qxe1 {[%emt 0:00:01]} Qf3 {[%emt 0:00:10]} 41. Rc2 {[%emt 0:00:09]} g5 {[%emt 0:00:35]} 42. hxg5 {[%emt 0:00:28]} hxg5 {[%emt 0:00:01]} 43. Rc5 {[%emt 0:00:00]} Qf6 {[%emt 0:01:50]} 44. Kg2 {[%emt 0:00:09]} g4 {[%emt 0:00:17]} 45. Rh5 {[%emt 0:00:09]} Kg7 {[%emt 0:00:52]} 46. Rh4 {[%emt 0:00:11]} Re4 {[%emt 0:00:15]} 47. a4 {[%emt 0:00:27]} Qf3+ {[%emt 0:00:23]} 48. Kh2 {[%emt 0:00:01]} Rd4 {[%emt 0:00:14]} 0-1

[Event "EIRCC 2019"]
[Site "Tallinn"]
[Date "2019.12.06"]
[Round "11.17"]
[White "Kanep, Meelis"]
[Black "Nasibullin, Iskander"]
[Result "1-0"]
[ECO "A45"]
[WhiteElo "2466"]
[BlackElo "2270"]
[Annotator "ChessBase"]
[PlyCount "69"]
[EventDate "2019.12.05"]
[EventType "swiss"]
[EventCountry "EST"]
[SourceTitle "playchess.com"]
[Source "ChessBase"]
[SourceQuality "1"]
[TimeControl "900+10"]

1. d4 {[%emt 0:00:00]} Nf6 {[%emt 0:00:00]} 2. Bg5 {[%emt 0:00:00]} e6 {[%emt 0:00:00]} 3. e4 {[%emt 0:00:00]} h6 {[%emt 0:00:00]} 4. Bxf6 {[%emt 0:00:00]} Qxf6 {[%emt 0:00:00]} 5. c3 {[%emt 0:00:01]} c5 {[%emt 0:00:03]} 6. Nf3 {[%emt 0:00:04]} cxd4 {[%emt 0:00:46]} 7. cxd4 {[%emt 0:00:02]} d5 {[%emt 0:00:03]} 8. e5 {[%emt 0:00:07]} Qd8 {[%emt 0:00:06]} 9. Nc3 {[%emt 0:00:07]} Nc6 {[%emt 0:00:16]} 10. Bd3 {[%emt 0:00:48]} a6 {[%emt 0:00:35]} 11. O-O {[%emt 0:00:09]} Na5 {[%emt 0:00:23]} 12. Rc1 {[%emt 0:00:33]} Bd7 {[%emt 0:00:21]} 13. Na4 {[%emt 0:03:41]} Nc4 {[%emt 0:04:13]} 14. Bxc4 {[%emt 0:03:05]} dxc4 {[%emt 0:00:04]} 15. Nc3 {[%emt 0:00:02]} Bb4 {[%emt 0:01:34]} 16. Qe2 {[%emt 0:00:46]} Rc8 {[%emt 0:00:17]} 17. Rfd1 {[%emt 0:00:08]} Bxc3 {[%emt 0:02:40]} 18. Rxc3 {[%emt 0:00:20]} Bc6 {[%emt 0:01:10]} 19. Nd2 {[%emt 0:00:34]} b5 {[%emt 0:01:07]} 20. Ne4 {[%emt 0:01:14]} Bxe4 {[%emt 0:00:10]} 21. Qxe4 {[%emt 0:00:01]} Qd5 {[%emt 0:00:05]} 22. Qf4 {[%emt 0:00:10]} b4 {[%emt 0:00:55]} 23. Rg3 {[%emt 0:00:04]} Rg8 {[%emt 0:00:55]} 24. h4 {[%emt 0:00:02]} Rc7 {[%emt 0:00:25]} 25. a3 {[%emt 0:00:45]} c3 {[%emt 0:00:46]} 26. bxc3 {[%emt 0:00:06]} bxc3 {[%emt 0:00:11]} 27. Rc1 {[%emt 0:00:16]} c2 {[%emt 0:00:15]} 28. Rf3 {[%emt 0:01:17]} g5 {[%emt 0:00:39]} 29. hxg5 {[%emt 0:00:35]} Rxg5 {[%emt 0:00:39]} 30. Rxc2 {[%emt 0:02:41]} Rxc2 {[%emt 0:00:24]} 31. Qxf7+ {[%emt 0:00:02]} Kd8 {[%emt 0:00:01]} 32. Qf8+ {[%emt 0:00:02]} Kc7 {[%emt 0:00:26]} 33. Rf7+ {[%emt 0:00:03]} Kc6 {[%emt 0:00:29]} 34. Qe8+ {[%emt 0:00:04]} Kb6 {[%emt 0:00:24]} 35. Qb8+ {[%emt 0:00:04]} 1-0

[Event "EIRCC 2019"]
[Site "Tallinn"]
[Date "2019.12.06"]
[Round "11.19"]
[White "Chibukhchyan, Erik"]
[Black "Pohjala, Henri"]
[Result "0-1"]
[ECO "B01"]
[WhiteElo "2211"]
[BlackElo "2418"]
[Annotator "NA"]
[PlyCount "94"]
[EventDate "2019.12.05"]
[EventType "swiss"]
[EventCountry "EST"]
[SourceTitle "playchess.com"]
[Source "ChessBase"]
[SourceQuality "1"]
[TimeControl "900+10"]

1. e4 {[%emt 0:01:24]} d5 {[%emt 0:00:00]} 2. exd5 {[%emt 0:00:03]} Qxd5 {[%emt 0:00:00]} 3. Nf3 {[%emt 0:00:07]} Nf6 {[%emt 0:00:03]} 4. d4 {[%emt 0:00:01]} Bg4 {[%emt 0:00:03]} 5. Be2 {[%emt 0:00:01]} e6 {[%emt 0:00:03]} 6. O-O {[%emt 0:00:06]} Nc6 {[%emt 0:00:05]} 7. Be3 {[%emt 0:00:23]} Rd8 {[%emt 0:01:41]} 8. Nbd2 {[%emt 0:00:18]} Be7 {[%emt 0:03:14]} 9. c4 {[%emt 0:03:25]} Qd7 {[%emt 0:00:03]} 10. Qb3 {[%emt 0:00:25]} O-O {[%emt 0:00:36]} 11. h3 {[%emt 0:00:03]} Bh5 {[%emt 0:00:52]} 12. Rfd1 {[%emt 0:00:07]} Qc8 {[%emt 0:00:33]} 13. Rac1 {[%emt 0:00:06]} Rfe8 {[%emt 0:01:08]} 14. Nb1 {[%emt 0:00:18]} a6 {[%emt 0:04:07]} 15. Nc3 {[%emt 0:00:16]} h6 {[%emt 0:00:38]} 16. d5 {[%emt 0:01:59]} exd5 {[%emt 0:00:38]} 17. cxd5 {[%emt 0:00:21]} Nb8 {[%emt 0:00:06]} 18. a4 {[%emt 0:01:32]} Bd6 {[%emt 0:00:17]} 19. a5 {[%emt 0:00:38]} Nbd7 {[%emt 0:00:30]} 20. Na4 {[%emt 0:01:07]} Ne5 {[%emt 0:00:49]} 21. Nd4 {[%emt 0:00:01]} Bxe2 {[%emt 0:00:36]} 22. Nxe2 {[%emt 0:00:01]} Ne4 {[%emt 0:01:35]} 23. Nd4 {[%emt 0:00:22]} Qd7 {[%emt 0:00:17]} 24. Qc2 {[%emt 0:00:38]} Bf8 {[%emt 0:00:48]} 25. Ne2 {[%emt 0:01:05]} Nf6 {[%emt 0:00:07]} 26. Nec3 {[%emt 0:01:23]} Nc4 {[%emt 0:00:16]} 27. Bd4 {[%emt 0:00:01]} Be7 {[%emt 0:00:10]} 28. b4 {[%emt 0:01:20]} Na3 {[%emt 0:00:11]} 29. Qb3 {[%emt 0:00:03]} Nb5 {[%emt 0:00:02]} 30. Bxf6 {[%emt 0:00:22]} Bxf6 {[%emt 0:00:06]} 31. Nc5 {[%emt 0:00:03]} Qc8 {[%emt 0:00:18]} 32. Nxb5 {[%emt 0:00:05]} axb5 {[%emt 0:00:02]} 33. Qf3 {[%emt 0:01:04]} Be7 {[%emt 0:00:21]} 34. Rd3 {[%emt 0:01:18]} Qa8 {[%emt 0:00:09]} 35. d6 {[%emt 0:00:08]} Rxd6 {[%emt 0:00:08]} 36. Rxd6 {[%emt 0:00:05]} Bxd6 {[%emt 0:00:02]} 37. Nxb7 {[%emt 0:00:17]} Bxb4 {[%emt 0:00:06]} 38. Rxc7 {[%emt 0:00:04]} Re1+ {[%emt 0:00:23]} 39. Kh2 {[%emt 0:00:04]} Re7 {[%emt 0:00:04]} 40. Rxe7 {[%emt 0:00:09]} Bxe7 {[%emt 0:00:02]} 41. Qc6 {[%emt 0:00:07]} b4 {[%emt 0:00:19]} 42. a6 {[%emt 0:00:09]} Qa7 {[%emt 0:00:13]} 43. Qe8+ {[%emt 0:00:26]} Bf8 {[%emt 0:00:01]} 44. Qe2 {[%emt 0:00:11]} b3 {[%emt 0:00:09]} 45. Na5 {[%emt 0:00:02]} Qc7+ {[%emt 0:00:07]} 46. g3 {[%emt 0:00:08]} Qxa5 {[%emt 0:00:02]} 47. Qc4 {[%emt 0:00:03]} b2 {[%emt 0:00:05]} 0-1

[Event "EIRCC 2019"]
[Site "Tallinn"]
[Date "2019.12.06"]
[Round "11.22"]
[White "Sanz Wawer, Daniel"]
[Black "Dragnev, Valentin"]
[Result "1/2-1/2"]
[ECO "D35"]
[WhiteElo "2103"]
[BlackElo "2380"]
[Annotator "RC"]
[PlyCount "212"]
[EventDate "2019.12.05"]
[EventType "swiss"]
[EventCountry "EST"]
[SourceTitle "playchess.com"]
[Source "ChessBase"]
[SourceQuality "1"]
[TimeControl "900+10"]

1. d4 {[%emt 0:00:00]} Nf6 {[%emt 0:00:00]} 2. c4 {[%emt 0:00:00]} e6 {[%emt 0:00:00]} 3. Nc3 {[%emt 0:00:00]} d5 {[%emt 0:00:04]} 4. Bf4 {[%emt 0:00:02]} c5 {[%emt 0:00:06]} 5. e3 {[%emt 0:00:11]} cxd4 {[%emt 0:00:05]} 6. exd4 {[%emt 0:00:08]} Nc6 {[%emt 0:00:04]} 7. Nf3 {[%emt 0:00:14]} Be7 {[%emt 0:00:27]} 8. Bd3 {[%emt 0:00:26]} dxc4 {[%emt 0:00:02]} 9. Bxc4 {[%emt 0:00:02]} O-O {[%emt 0:00:02]} 10. O-O {[%emt 0:00:08]} b6 {[%emt 0:00:10]} 11. Bb3 {[%emt 0:02:10]} Na5 {[%emt 0:00:10]} 12. Bc2 {[%emt 0:00:17]} Bb7 {[%emt 0:00:09]} 13. Ne5 {[%emt 0:00:36]} Rc8 {[%emt 0:00:12]} 14. a3 {[%emt 0:00:40]} Nc6 {[%emt 0:01:31]} 15. Nf3 {[%emt 0:01:32]} Nd5 {[%emt 0:03:29]} 16. Nxd5 {[%emt 0:00:24]} Qxd5 {[%emt 0:00:05]} 17. Qd3 {[%emt 0:00:30]} Qh5 {[%emt 0:00:32]} 18. Rac1 {[%emt 0:02:33]} Rfd8 {[%emt 0:00:05]} 19. Rfd1 {[%emt 0:00:36]} Bf6 {[%emt 0:00:12]} 20. Qe3 {[%emt 0:00:53]} Nxd4 {[%emt 0:04:10]} 21. Be4 {[%emt 0:01:16]} Bxe4 {[%emt 0:01:19]} 22. Rxc8 {[%emt 0:01:46]} Rxc8 {[%emt 0:00:03]} 23. Qxe4 {[%emt 0:00:16]} Nxf3+ {[%emt 0:00:18]} 24. gxf3 {[%emt 0:00:45]} Qg6+ {[%emt 0:00:54]} 25. Qxg6 {[%emt 0:00:03]} hxg6 {[%emt 0:00:01]} 26. Rd7 {[%emt 0:00:13]} Bxb2 {[%emt 0:00:15]} 27. Rxa7 {[%emt 0:00:02]} Rc3 {[%emt 0:00:14]} 28. a4 {[%emt 0:00:49]} Rb3 {[%emt 0:02:29]} 29. Be3 {[%emt 0:01:10]} Bc3 {[%emt 0:00:02]} 30. Ra8+ {[%emt 0:01:23]} Kh7 {[%emt 0:00:01]} 31. Rc8 {[%emt 0:00:03]} Ba5 {[%emt 0:00:28]} 32. Rc4 {[%emt 0:00:03]} f6 {[%emt 0:00:59]} 33. f4 {[%emt 0:00:05]} Ra3 {[%emt 0:00:34]} 34. Re4 {[%emt 0:00:40]} Kg8 {[%emt 0:00:50]} 35. Rxe6 {[%emt 0:00:23]} Rxa4 {[%emt 0:00:02]} 36. Bxb6 {[%emt 0:00:09]} Bxb6 {[%emt 0:00:20]} 37. Rxb6 {[%emt 0:00:01]} Rxf4 {[%emt 0:00:02]} 38. Kg2 {[%emt 0:00:08]} g5 {[%emt 0:00:00]} 39. Rb7 {[%emt 0:00:07]} Kh7 {[%emt 0:00:02]} 40. h3 {[%emt 0:00:09]} g4 {[%emt 0:00:18]} 41. hxg4 {[%emt 0:00:13]} Rxg4+ {[%emt 0:00:01]} 42. Kf3 {[%emt 0:00:05]} Ra4 {[%emt 0:00:01]} 43. Rc7 {[%emt 0:00:03]} Kg6 {[%emt 0:00:04]} 44. Rb7 {[%emt 0:00:01]} Ra3+ {[%emt 0:00:02]} 45. Kg2 {[%emt 0:00:04]} Rc3 {[%emt 0:00:02]} 46. Ra7 {[%emt 0:00:01]} Kh6 {[%emt 0:00:02]} 47. Rb7 {[%emt 0:00:02]} g6 {[%emt 0:00:04]} 48. Ra7 {[%emt 0:00:01]} Kg5 {[%emt 0:00:02]} 49. Ra6 {[%emt 0:00:10]} Rb3 {[%emt 0:00:07]} 50. Rc6 {[%emt 0:00:02]} f5 {[%emt 0:00:01]} 51. Rd6 {[%emt 0:00:02]} Kh5 {[%emt 0:00:02]} 52. Rf6 {[%emt 0:00:13]} Ra3 {[%emt 0:00:05]} 53. Kh2 {[%emt 0:00:10]} Ra5 {[%emt 0:01:09]} 54. Kg2 {[%emt 0:00:04]} g5 {[%emt 0:00:07]} 55. Rf8 {[%emt 0:00:16]} Kg4 {[%emt 0:00:04]} 56. Rf7 {[%emt 0:00:16]} Ra3 {[%emt 0:00:16]} 57. Rb7 {[%emt 0:00:33]} Kh4 {[%emt 0:00:17]} 58. Rh7+ {[%emt 0:00:06]} Kg4 {[%emt 0:00:01]} 59. Rb7 {[%emt 0:00:02]} Ra4 {[%emt 0:00:20]} 60. Rb3 {[%emt 0:00:06]} f4 {[%emt 0:00:24]} 61. Rc3 {[%emt 0:00:02]} Rb4 {[%emt 0:00:02]} 62. Ra3 {[%emt 0:00:01]} Rc4 {[%emt 0:00:01]} 63. Rb3 {[%emt 0:00:01]} Rc2 {[%emt 0:00:23]} 64. Ra3 {[%emt 0:00:04]} Re2 {[%emt 0:00:03]} 65. Rb3 {[%emt 0:00:06]} Kf5 {[%emt 0:00:28]} 66. Rb5+ {[%emt 0:00:16]} Re5 {[%emt 0:00:01]} 67. Rb8 {[%emt 0:00:02]} Re2 {[%emt 0:00:22]} 68. Kf3 {[%emt 0:00:32]} Re6 {[%emt 0:00:08]} 69. Rf8+ {[%emt 0:01:22]} Rf6 {[%emt 0:00:12]} 70. Rg8 {[%emt 0:00:02]} Rf7 {[%emt 0:00:05]} 71. Kg2 {[%emt 0:00:15]} g4 {[%emt 0:00:30]} 72. Ra8 {[%emt 0:00:03]} Kg5 {[%emt 0:00:11]} 73. Rg8+ {[%emt 0:00:05]} Kf5 {[%emt 0:00:01]} 74. Ra8 {[%emt 0:00:02]} Rf6 {[%emt 0:00:18]} 75. Rb8 {[%emt 0:00:26]} Kg5 {[%emt 0:00:09]} 76. Rc8 {[%emt 0:00:13]} Rf5 {[%emt 0:00:13]} 77. Rh8 {[%emt 0:00:25]} Rd5 {[%emt 0:00:01]} 78. Rh7 {[%emt 0:00:19]} Rd2 {[%emt 0:00:21]} 79. Kg1 {[%emt 0:00:13]} Rd1+ {[%emt 0:00:18]} 80. Kh2 {[%emt 0:00:10]} Rd2 {[%emt 0:00:01]} 81. Kg1 {[%emt 0:00:04]} Kf5 {[%emt 0:00:11]} 82. Rg7 {[%emt 0:00:15]} f3 {[%emt 0:00:07]} 83. Rf7+ {[%emt 0:00:13]} Kg6 {[%emt 0:00:01]} 84. Rf8 {[%emt 0:00:02]} Rc2 {[%emt 0:00:22]} 85. Rf4 {[%emt 0:00:15]} Kg5 {[%emt 0:00:01]} 86. Rf8 {[%emt 0:00:01]} Rc6 {[%emt 0:00:24]} 87. Kh2 {[%emt 0:00:23]} Rh6+ {[%emt 0:00:02]} 88. Kg1 {[%emt 0:00:01]} Rh5 {[%emt 0:00:15]} 89. Rg8+ {[%emt 0:00:14]} Kh4 {[%emt 0:00:11]} 90. Kh2 {[%emt 0:00:14]} Rh7 {[%emt 0:00:07]} 91. Rg6 {[%emt 0:00:08]} Re7 {[%emt 0:00:02]} 92. Rg8 {[%emt 0:00:10]} Re6 {[%emt 0:00:28]} 93. Rg7 {[%emt 0:00:13]} Rd6 {[%emt 0:00:02]} 94. Rg8 {[%emt 0:00:03]} Rd1 {[%emt 0:00:24]} 95. Rh8+ {[%emt 0:00:11]} Kg5 {[%emt 0:00:01]} 96. Rg8+ {[%emt 0:00:01]} Kf5 {[%emt 0:00:01]} 97. Rf8+ {[%emt 0:00:09]} Ke4 {[%emt 0:00:01]} 98. Rg8 {[%emt 0:00:11]} Kd3 {[%emt 0:00:19]} 99. Re8 {[%emt 0:00:25]} Rf1 {[%emt 0:00:26]} 100. Kg3 {[%emt 0:00:03]} Rg1+ {[%emt 0:00:01]} 101. Kf4 {[%emt 0:00:11]} Rg2 {[%emt 0:00:01]} 102. Re7 {[%emt 0:00:12]} Rxf2 {[%emt 0:00:28]} 103. Kxg4 {[%emt 0:00:06]} Re2 {[%emt 0:00:10]} 104. Rf7 {[%emt 0:00:11]} f2 {[%emt 0:00:04]} 105. Kg3 {[%emt 0:00:07]} Ke3 {[%emt 0:00:02]} 106. Rf3+ {[%emt 0:00:06]} Ke4 {[%emt 0:00:02]} 1/2-1/2

[Event "EIRCC 2019"]
[Site "Tallinn"]
[Date "2019.12.06"]
[Round "11.23"]
[White "Krutti, Valer"]
[Black "Kozak, Adam"]
[Result "0-1"]
[ECO "E10"]
[WhiteElo "2370"]
[BlackElo "2240"]
[Annotator "RC"]
[PlyCount "132"]
[EventDate "2019.12.05"]
[EventType "swiss"]
[EventCountry "EST"]
[SourceTitle "playchess.com"]
[Source "ChessBase"]
[SourceQuality "1"]
[TimeControl "900+10"]

1. d4 {[%emt 0:00:00]} Nf6 {[%emt 0:00:00]} 2. c4 {[%emt 0:00:00]} e6 {[%emt 0:00:00]} 3. Nf3 {[%emt 0:00:01]} d5 {[%emt 0:00:03]} 4. g3 {[%emt 0:00:05]} Bb4+ {[%emt 0:00:01]} 5. Bd2 {[%emt 0:00:02]} Be7 {[%emt 0:00:02]} 6. Bg2 {[%emt 0:00:02]} O-O {[%emt 0:00:03]} 7. O-O {[%emt 0:00:03]} c6 {[%emt 0:00:01]} 8. Qc2 {[%emt 0:00:02]} Nbd7 {[%emt 0:00:01]} 9. Rd1 {[%emt 0:00:16]} b6 {[%emt 0:00:10]} 10. b3 {[%emt 0:00:16]} Ba6 {[%emt 0:00:25]} 11. a4 {[%emt 0:00:04]} c5 {[%emt 0:00:15]} 12. a5 {[%emt 0:00:24]} Rc8 {[%emt 0:00:02]} 13. axb6 {[%emt 0:00:02]} Qxb6 {[%emt 0:00:01]} 14. Ba5 {[%emt 0:00:17]} Qb8 {[%emt 0:00:39]} 15. Nbd2 {[%emt 0:00:40]} cxd4 {[%emt 0:00:29]} 16. Nxd4 {[%emt 0:00:06]} Bc5 {[%emt 0:00:38]} 17. e3 {[%emt 0:00:13]} Bb7 {[%emt 0:00:58]} 18. Bc3 {[%emt 0:00:45]} dxc4 {[%emt 0:02:03]} 19. Nxc4 {[%emt 0:01:27]} Bxg2 {[%emt 0:00:25]} 20. Kxg2 {[%emt 0:00:02]} Qb7+ {[%emt 0:00:26]} 21. Kg1 {[%emt 0:00:29]} Nd5 {[%emt 0:02:07]} 22. Bb2 {[%emt 0:03:09]} N7f6 {[%emt 0:00:10]} 23. Ba3 {[%emt 0:00:48]} Nb4 {[%emt 0:01:35]} 24. Bxb4 {[%emt 0:00:54]} Bxb4 {[%emt 0:00:41]} 25. Ne2 {[%emt 0:00:05]} Bc5 {[%emt 0:00:39]} 26. Nc3 {[%emt 0:00:17]} h5 {[%emt 0:00:24]} 27. Rab1 {[%emt 0:02:27]} Qf3 {[%emt 0:02:11]} 28. Ne5 {[%emt 0:00:59]} Qb7 {[%emt 0:00:12]} 29. Nc4 {[%emt 0:00:02]} Bb4 {[%emt 0:00:48]} 30. Ne2 {[%emt 0:00:17]} Ne4 {[%emt 0:01:12]} 31. h4 {[%emt 0:00:20]} Nf6 {[%emt 0:00:45]} 32. Nf4 {[%emt 0:00:09]} Qb5 {[%emt 0:00:26]} 33. Qd3 {[%emt 0:00:17]} Rb8 {[%emt 0:00:43]} 34. Qd4 {[%emt 0:00:45]} a5 {[%emt 0:00:12]} 35. Kg2 {[%emt 0:00:34]} Qc6+ {[%emt 0:00:17]} 36. f3 {[%emt 0:00:07]} Bc5 {[%emt 0:00:32]} 37. Qd3 {[%emt 0:00:57]} Qc7 {[%emt 0:00:39]} 38. e4 {[%emt 0:00:31]} Rfd8 {[%emt 0:00:07]} 39. Qc2 {[%emt 0:00:03]} Bd4 {[%emt 0:00:47]} 40. Ne2 {[%emt 0:00:18]} Bc5 {[%emt 0:00:04]} 41. Rxd8+ {[%emt 0:00:29]} Rxd8 {[%emt 0:00:02]} 42. Rd1 {[%emt 0:00:02]} Rb8 {[%emt 0:00:31]} 43. Nf4 {[%emt 0:00:43]} Bf8 {[%emt 0:00:01]} 44. Qc3 {[%emt 0:01:07]} Rb5 {[%emt 0:00:17]} 45. Ra1 {[%emt 0:00:34]} Qb8 {[%emt 0:00:11]} 46. Qc2 {[%emt 0:01:08]} Rxb3 {[%emt 0:00:11]} 47. Rxa5 {[%emt 0:00:16]} Rb4 {[%emt 0:00:03]} 48. Ra4 {[%emt 0:00:06]} Rb1 {[%emt 0:00:12]} 49. Ne2 {[%emt 0:00:14]} Nd7 {[%emt 0:00:09]} 50. Ra2 {[%emt 0:00:01]} Rb4 {[%emt 0:00:13]} 51. Nd2 {[%emt 0:00:18]} Ne5 {[%emt 0:00:06]} 52. Nf4 {[%emt 0:00:04]} g6 {[%emt 0:00:01]} 53. Nd3 {[%emt 0:00:09]} Nxd3 {[%emt 0:00:21]} 54. Qxd3 {[%emt 0:00:02]} Bd6 {[%emt 0:00:01]} 55. Nf1 {[%emt 0:00:15]} Rb3 {[%emt 0:00:06]} 56. Qd2 {[%emt 0:00:08]} Be5 {[%emt 0:00:27]} 57. Qe2 {[%emt 0:00:20]} Bd4 {[%emt 0:00:07]} 58. Rd2 {[%emt 0:00:10]} e5 {[%emt 0:00:01]} 59. Ra2 {[%emt 0:00:09]} Rb1 {[%emt 0:00:09]} 60. Qc2 {[%emt 0:00:09]} Kg7 {[%emt 0:00:09]} 61. Qe2 {[%emt 0:00:15]} Rc1 {[%emt 0:00:08]} 62. g4 {[%emt 0:00:02]} Qb1 {[%emt 0:00:12]} 63. Rd2 {[%emt 0:00:01]} Re1 {[%emt 0:00:16]} 64. Qd3 {[%emt 0:00:12]} Qxd3 {[%emt 0:00:07]} 65. Rxd3 {[%emt 0:00:01]} hxg4 {[%emt 0:00:01]} 66. fxg4 {[%emt 0:00:06]} Rxe4 0-1